{"text_format":"1","workbook":"xlsx","n_sheets":13,"sheets":["Constraints","Check Sheet Fast Pitch","sched","Fast Pitch 14u","Fast Pitch 12u","Sep-29-2022","Oct-6-2022","Oct-13-2022","Oct-20-2022","Oct-27-2022","Nov-3-2022","Nov-10-2022","Nov-17-2022"],"not_rendered":{"charts":0,"images":0,"macros":1,"external_links":0,"defined_names":3,"comments":0,"pivot_tables":0},"unopened":[],"bounds":{"document_bytes":16777216,"sheet_cells":100000,"rows_first":2000,"rows_last":500,"rows_between":2000,"halvings":0,"cell_chars":16384,"cell_head_chars":4096},"cells_cut":0,"cells_raw":0,"read":"whole","date_system":"1900"}

{"sheet":"Constraints","index":0,"n_rows":1,"n_cols":6,"rows_kept":1,"cut":false,"hidden":false,"merged":[]}
["TEAM NAME","6:00 const","7:00 const","9:00 const","10:00 const","No Conflict Team"]

{"sheet":"Check Sheet Fast Pitch","index":1,"n_rows":12,"n_cols":29,"rows_kept":12,"cut":false,"hidden":false,"merged":[[0,1,0,28]]}
[null,"2022 Season 4 Thursday"]
[null,"Total Games for Night:",40,"2022-09-22",{"$f":"D2+7","v":"2022-09-29"},{"$f":"SUM(E2+7)","v":"2022-10-06"},"2022-10-13","2022-10-20","2022-10-27","2022-11-03","2022-11-10","2022-11-17",{"$f":"SUM(L2+7)","v":"2022-11-24"}]
[null,"TEAM NAME","Requested","CL",2,3,4,5,6,7,8,9,"playoffs",0,"H","V",0,6,7,8,9,10,null,"Tiger","Yankee","Fenway","Polo","Angel","Wrigley"]
[null,"Fast Pitch 14u"]
[1,"Pirates ",null,null,null,10,7,6,8,9,10,7,null,null,3,4,null,1,2,1,1,2,null,2,1,1,null,2,1]
[2,"NorCal Tremors",null,null,null,10,7,6,8,9,10,7,null,null,3,4,null,1,2,1,1,2,null,1,1,1,1,null,3]
[3,"Valley Bucks",null,null,null,10,7,6,8,9,10,7,null,null,4,3,null,1,2,1,1,2,null,1,3,null,1,1,1]
[4,"Stockton Tigers 14u",null,null,null,10,7,6,8,9,10,7,null,null,4,3,null,1,2,1,1,2,null,2,1,null,2,1,1]
[null,"Fast Pitch 12u"]
[5,"209 Storm Select",null,null,10,7,6,null,6,7,null,8,null,null,3,3,null,2,2,1,null,1,null,2,1,1,1,1]
[6,"Athletics",null,null,10,null,6,8,null,7,9,null,null,null,3,2,null,1,1,1,1,1,null,1,1,2,1]
[7,"Wave FastPitch",null,null,"10'10",7,null,8,6,null,9,8,null,null,3,4,null,1,1,2,1,2,null,1,2,1,2,1]

{"sheet":"sched","index":2,"n_rows":16,"n_cols":9,"rows_kept":16,"cut":false,"hidden":false,"merged":[[0,1,1,10]]}
[null,"2022 Season 4 Thursday FastPitch(FINAL)"]
[]
[]
[null,null,null,null,"Fast Pitch 14u","Wins","Losses","%","Games Back"]
[null,null,null,1,"Valley Ducks",4,2,{"$f":"F5/(G5+F5)","v":0.66666666666666663}]
[null,null,null,2,"NorCal Tremors",4,2,{"$f":"F6/(G6+F6)","v":0.66666666666666663}]
[null,null,null,3,"Pirates ",4,2,{"$f":"F7/(G7+F7)","v":0.66666666666666663}]
[null,null,null,4,"Stockton Tigers 14u",0,6,{"$f":"F8/(G8+F8)","v":0},0]
[]
[]
[]
[]
[null,null,null,null,"Fast Pitch 12u","Wins","Losses","%","Games Back"]
[null,null,null,1,"Athletics",5,1,{"$f":"F14/(F14+G14)","v":0.83333333333333337}]
[null,null,null,2,"Wave FastPitch",2,4,{"$f":"F15/(F15+G15)","v":0.33333333333333331}]
[null,null,null,3,"209 Storm Select",2,4,{"$f":"F16/(F16+G16)","v":0.33333333333333331}]

{"sheet":"Fast Pitch 14u","index":3,"n_rows":28,"n_cols":15,"rows_kept":28,"cut":false,"hidden":false,"merged":[[0,0,0,7],[1,0,1,7],[2,0,2,7]]}
["Big League Dreams Sports Park",null,null,null,null,null,null,null,null,null,"Fast Pitch 14u","Wins","Losses","%","Games Back"]
["2022 Season 4 Thursday Fast Pitch 14u",null,null,null,null,null,null,null,null,1,"Valley Ducks",4,2,{"$f":"L2/(M2+L2)","v":0.66666666666666663}]
["Home team sits on third base side.  *Denotes Doubleheader",null,null,null,null,null,null,null,null,2,"NorCal Tremors",4,2,{"$f":"L3/(M3+L3)","v":0.66666666666666663}]
["Date","Time","Replica","Home Team","Score",null,"Away Team","Score",null,3,"Pirates ",4,2,{"$f":"L4/(M4+L4)","v":0.66666666666666663}]
["   ",null,null,null,null,null,null,null,null,4,"Stockton Tigers 14u",0,6,{"$f":"L5/(M5+L5)","v":0},0]
["   "]
["   "]
["2022-09-29","05:30:00","Yankee","NorCal Tremors",4,"vs","Valley Ducs",10]
[null,"07:30:00","Tiger","Stockton Tigers 14u",4,"vs","Pirates ",10]
["   "]
["2022-10-06","05:30:00","Yankee","Valley Ducks",10,"vs","Pirates ",2]
[null,"07:30:00","Tiger","Stockton Tigers 14u",5,"vs","NorCal Tremors",15]
["   "]
["2022-10-13","07:30:00","Yankee","Pirates ",7,"vs","Stockton Tigers 14u",5]
["   ",null,null,"Valley Ducks",null,null,"Bye"]
[null,null,null,"NorCal Tremors",null,null,"Bye"]
["   "]
["2022-10-20","05:30:00","Yankee","NorCal Tremors*",5,"vs","Valley Ducks*",7]
["   ","07:30:00","Tiger","Pirates ",5,"vs","NorCal Tremors*",9]
["   ","07:30:00","Yankee","Stockton Tigers 14u",5,"vs","Valley Ducks*",13]
["   "]
["2022-10-27","05:30:00","Tiger","Valley Ducks",11,"vs","Pirates ",14]
["   ","07:30:00","Yankee","NorCal Tremors",9,"vs","Stockton Tigers 14u",8]
["   "]
["2022-11-03","05:30:00","Tiger","Stockton Tigers 14u",7,"vs","Pirates ",13]
["   ","07:30:00","Yankee","NorCal Tremors",7,"vs","Valley Ducks",0]
["   "]
["Playoffs will start 11/10/2022"]

{"sheet":"Fast Pitch 12u","index":4,"n_rows":26,"n_cols":15,"rows_kept":26,"cut":false,"hidden":false,"merged":[[0,0,0,7],[1,0,1,7],[2,0,2,7]]}
["Big League Dreams Sports Park",null,null,null,null,null,null,null,null,null,"Fast Pitch 12u","Wins","Losses","%","Games Back"]
["2022 Season 4 Thursday Fast Pitch 12u",null,null,null,null,null,null,null,null,1,"Athletics",5,1,{"$f":"L2/(L2+M2)","v":0.83333333333333337}]
["Home team sits on third base side.  *Denotes Doubleheader",null,null,null,null,null,null,null,null,2,"Wave FastPitch",2,4,{"$f":"L3/(L3+M3)","v":0.33333333333333331}]
["Date","Time","Replica","Home Team","Score",null,"Away Team","Score",null,3,"209 Storm Select",2,4,{"$f":"L4/(L4+M4)","v":0.33333333333333331}]
["   "]
["   "]
["   "]
["2022-09-29","05:30:00","Tiger","Wave FastPitch*",11,"vs","209 Storm Select",8]
["   ","07:30:00",null,"Athletics",8,null,"Wave FastPitch",6]
["   "]
["2022-10-06","07:30:00","Yankee","Athletics",4,"vs","209 Storm Select",3]
["   ",null,null,"Wave FastPitch",null,"vs","Bye"]
["   "]
["2022-10-13","05:30:00","Yankee","209 Storm Select",8,"vs","Athletics*",2]
["   ","07:30:00","Tiger","Wave FastPitch",6,"vs","Athletics*",9]
["   "]
["2022-10-20","05:30:00","Tiger","209 Storm Select",7,"vs","Wave FastPitch",0]
["   ",null,null,"Athletics",null,"vs","Bye"]
["   "]
["2022-10-27","05:30:00","Yankee","Athletics",13,"vs","Wave FastPitch*",4]
["   ","07:30:00","Tiger","Wave FastPitch*",5,"vs","209 Storm Select",4]
["   "]
["2022-11-03","07:30:00","Tiger","Athletics",7,"vs","209 Storm Select",6]
["   ",null,null,"Wave FastPitch",null,null,"Bye"]
["   "]
["Playoffs will start 11/10/2022"]

{"sheet":"Sep-29-2022","index":5,"n_rows":20,"n_cols":7,"rows_kept":20,"cut":false,"hidden":false,"merged":[[0,1,0,6]]}
[null,"GAME SCHEDULE FOR THURSDAY 9/29/2022"]
[null,"TIGER","YANKEE","FENWAY","POLO","ANGEL","WRIGLEY"]
[null,"REPLICA","REPLICA","REPLICA","REPLICA","REPLICA","REPLICA"]
[null,"   ","   ","   ","   ","   ","   "]
[null,"Fast Pitch 12u","Fast Pitch 14u"]
["5:30pm","209 Storm Select","Valley Ducs"]
[null,"Wave FastPitch*","NorCal Tremors"]
[]
[]
[]
[null,"Fast Pitch 12u","Fast Pitch 14u"]
["7:30pm","Wave FastPitch*","Pirates"]
[null,"Athletics","Stockton Tigers"]
[]
[]
[]
[]
[]
[]
[null,"Home team is listed second on the schedule and occupies 3rd base dugout",null,null,null,null,"Week 2"]

{"sheet":"Oct-6-2022","index":6,"n_rows":20,"n_cols":7,"rows_kept":20,"cut":false,"hidden":false,"merged":[[0,1,0,6]]}
[null,"GAME SCHEDULE FOR THURSDAY 10/6/2022"]
[null,"TIGER","YANKEE","FENWAY","POLO","ANGEL","WRIGLEY"]
[null,"REPLICA","REPLICA","REPLICA","REPLICA","REPLICA","REPLICA"]
[null,"   ","   ","   ","   ","   ","   "]
[null,null,"Fast Pitch 14u"]
["5:30pm",null,"Pirates "]
[null,null,"Valley Ducks"]
[]
[]
[]
[null,"Fast Pitch 14u","Fast Pitch 12u"]
["7:30pm","NorCal Tremors","209 Storm Select"]
[null,"Stockton Tigers 14u","Athletics"]
[]
[]
[]
[]
[]
[]
[null,"Home team is listed second on the schedule and occupies 3rd base dugout",null,null,null,null,"Week 3"]

{"sheet":"Oct-13-2022","index":7,"n_rows":20,"n_cols":7,"rows_kept":20,"cut":false,"hidden":false,"merged":[[0,1,0,6]]}
[null,"GAME SCHEDULE FOR THURSDAY 10/13/2022"]
[null,"TIGER","YANKEE","FENWAY","POLO","ANGEL","WRIGLEY"]
[null,"REPLICA","REPLICA","REPLICA","REPLICA","REPLICA","REPLICA"]
[null,"   ","   ","   ","   ","   ","   "]
[null,null,"Fast Pitch 12u"]
["5:30pm",null,"Athletics*"]
[null,null,"209 Storm Select"]
[]
[]
[]
[null,"Fast Pitch 12u","Fast Pitch 14u"]
["7:30pm","Athletics*","Stockton Tigers 14u"]
[null,"Wave FastPitch","Pirates "]
[]
[]
[]
[]
[]
[]
[null,"Home team is listed second on the schedule and occupies 3rd base dugout",null,null,null,null,"Week 4"]

{"sheet":"Oct-20-2022","index":8,"n_rows":20,"n_cols":7,"rows_kept":20,"cut":false,"hidden":false,"merged":[[0,1,0,6]]}
[null,"GAME SCHEDULE FOR THURSDAY 10/20/2022"]
[null,"TIGER","YANKEE","FENWAY","POLO","ANGEL","WRIGLEY"]
[null,"REPLICA","REPLICA","REPLICA","REPLICA","REPLICA","REPLICA"]
[null,"   ","   ","   ","   ","   ","   "]
[null,"Fast Pitch 12u","Fast Pitch 14u"]
["5:30pm","Wave FastPitch","Valley Ducks*"]
[null,"209 Storm Select","NorCal Tremors*"]
[]
[]
[]
[null,"Fast Pitch 14u","Fast Pitch 14u"]
["7:30pm","NorCal Tremors*","Valley Ducks*"]
[null,"Pirates ","Stockton Tigers 14u"]
[]
[]
[]
[]
[]
[]
[null,"Home team is listed second on the schedule and occupies 3rd base dugout",null,null,null,null,"Week 5"]

{"sheet":"Oct-27-2022","index":9,"n_rows":20,"n_cols":7,"rows_kept":20,"cut":false,"hidden":false,"merged":[[0,1,0,6]]}
[null,"GAME SCHEDULE FOR THURSDAY 10/27/2022"]
[null,"TIGER","YANKEE","FENWAY","POLO","ANGEL","WRIGLEY"]
[null,"REPLICA","REPLICA","REPLICA","REPLICA","REPLICA","REPLICA"]
[null,"   ","   ","   ","   ","   ","   "]
[null,"Fast Pitch 14u","Fast Pitch 12u"]
["5:30pm","Pirates ","Wave FastPitch*"]
[null,"Valley Ducks","Athletics"]
[]
[]
[]
[null,"Fast Pitch 12u","Fast Pitch 14u"]
["7:30pm","209 Storm Select","Stockton Tigers 14u"]
[null,"Wave FastPitch*","NorCal Tremors"]
[]
[]
[]
[]
[]
[]
[null,"Home team is listed second on the schedule and occupies 3rd base dugout",null,null,null,null,"Week 6"]

{"sheet":"Nov-3-2022","index":10,"n_rows":20,"n_cols":7,"rows_kept":20,"cut":false,"hidden":false,"merged":[[0,1,0,6]]}
[null,"GAME SCHEDULE FOR THURSDAY 11/3/2022"]
[null,"TIGER","YANKEE","FENWAY","POLO","ANGEL","WRIGLEY"]
[null,"REPLICA","REPLICA","REPLICA","REPLICA","REPLICA","REPLICA"]
[null,"   ","   ","   ","   ","   ","   "]
[null,"Fast Pitch 14u"]
["5:30pm","Pirates "]
[null,"Stockton Tigers 14u"]
[]
[]
[]
[null,"Fast Pitch 12u","Fast Pitch 14u"]
["7:30pm","209 Storm Select","Valley Ducks"]
[null,"Athletics","NorCal Tremors"]
[]
[]
[]
[]
[]
[]
[null,"Home team is listed second on the schedule and occupies 3rd base dugout",null,null,null,null,"Week 7"]

{"sheet":"Nov-10-2022","index":11,"n_rows":20,"n_cols":7,"rows_kept":20,"cut":false,"hidden":false,"merged":[[0,1,0,6]]}
[null,"GAME SCHEDULE FOR THURSDAY 11/10/2022"]
[null,"TIGER","YANKEE","FENWAY","POLO","ANGEL","WRIGLEY"]
[null,"REPLICA","REPLICA","REPLICA","REPLICA","REPLICA","REPLICA"]
[null,"   ","   ","   ","   ","   ","   "]
[null,"14u","12u"]
["5:30pm","#3 Pirates","#3 209 Storm Select"]
[null,"#2 NorCal Tremors","#2 Wave FastPitch"]
[]
[]
[]
[null,"14u Championship","12u Championship"]
["7:30pm","Winner 5:30pm Tiger","Winner 5:30pm Yankee"]
[null,"#1 Valley Ducks","#1 Athletics"]
[]
[]
[]
[]
[]
[]
[null,"Home team is listed second on the schedule and occupies 3rd base dugout",null,null,null,null,"Week 8"]

{"sheet":"Nov-17-2022","index":12,"n_rows":20,"n_cols":7,"rows_kept":20,"cut":false,"hidden":false,"merged":[[0,1,0,6]]}
[null,"GAME SCHEDULE FOR THURSDAY 11/17/2022"]
[null,"TIGER","YANKEE","FENWAY","POLO","ANGEL","WRIGLEY"]
[null,"REPLICA","REPLICA","REPLICA","REPLICA","REPLICA","REPLICA"]
[null,"   ","   ","   ","   ","   ","   "]
[]
["06:00:00"]
[]
[]
["07:00:00"]
[]
[]
["08:00:00"]
[]
[]
["09:00:00"]
[]
[]
["10:00:00"]
[]
[null,"Home team is listed second on the schedule and occupies 3rd base dugout",null,null,null,null,"Week 9"]